Cogmind - Beta 17 @@@ ROGUE MODE // 2026.07.01 @ 13:00:06 Player: [THREAT] Result: Self-destructed Performance ------------- Evolutions (1) 500 Regions Visited (2) 400 Robots Destroyed (19) 95 Value Destroyed (150) 150 Prototype IDs (1) 20 Alien Tech Used (0) 0 Bonus (5400) 5400 TOTAL SCORE: 6565 Bonus ------- Prayed to X0-1V1 5000 Major X0-1V1 Interference 400 Cogmind --------- Core Integrity 232/400 Matter 285/300 Energy 250/250 System Corruption 0% Temperature Cool (0) Movement Core (350) Ox6 Location -9/Materials Parts ------- > --- POWER (1) -------- Ion Engine > --- PROPULSION (2) --- (None) > --- UTILITY (4) ------ Small Storage Unit Hardened Light Armor Plating > --- WEAPON (2) ------- Heavy Hammer Heavy Hammer > --- INVENTORY (8) ---- Improved Targeting Computer Authchip [R/NC] Authchip [Weapon] Particle Gun Particle Gun Particle Gun Heavy Hammer Mining Claw Peak State ------------ > --- POWER ------------ Ion Engine > --- PROPULSION ------- Aluminum Leg Aluminum Leg > --- UTILITY ---------- Small Storage Unit Hardened Light Armor Plating X0-1V1's Piety Tracker > --- WEAPON ----------- Heavy Hammer Mining Claw > --- INVENTORY -------- Improved Targeting Computer Authchip [R/NC] Authchip [Weapon] Particle Gun Particle Gun Particle Gun Heavy Hammer Heavy Hammer [Rating: 24] Favorites ----------- Power Ion Engine Engine Ion Engine Propulsion Aluminum Leg Leg Aluminum Leg Utility Small Storage Unit Device X0-1V1's Piety Tracker Storage Small Storage Unit Protection Hardened Light Armor Plating Weapon Heavy Hammer Energy Gun Small Laser Impact Weapon Heavy Hammer Slashing Weapon Mining Claw Build | -11 -10 -9 ------- Run | Yrd Mat Mat Slots Evolved 2 | . . 2 Power . | . . . Propulsion . | . . . Utility 2 | . . 2 Weapon . | . . . Parts Attached 14 | 6 6 2 Power 1 | 1 . . Engine 1 | 1 . . Core . | . . . Reactor . | . . . Propulsion 2 | 2 . . Treads . | . . . Leg 2 | 2 . . Wheel . | . . . Hover . | . . . Flight . | . . . Utility 4 | 1 2 1 Device 1 | . . 1 Storage 1 | 1 . . Processor . | . . . Hackware . | . . . Protection 2 | . 2 . Artifact . | . . . Weapon 7 | 2 4 1 Energy Gun 3 | 2 1 . Energy Cannon . | . . . Ballistic Gun . | . . . Ballistic Cannon . | . . . Launcher . | . . . Special Weapon . | . . . Impact Weapon 3 | . 2 1 Slashing Weapon 1 | . 1 . Piercing Weapon . | . . . Special Melee Weapon . | . . . Unidentified Prototypes 1 | . . 1 Parts Lost 3 | . . 3 Power . | . . . Propulsion 2 | . . 2 Utility 1 | . . 1 Weapon . | . . . Highest Loss Streak 3 | . . 3 To Critical Strikes . | . . . Average Backups 6 | 1 7 7 Power . | . . . Propulsion . | . . . Utility 1 | . 1 2 Weapon 4 | . 5 5 Tool/Special . | . . . Unused Backups 11 | . 6 5 Power . | . . . Propulsion . | . . . Utility 5 | . 2 3 Weapon 6 | . 4 2 Tool/Special . | . . . Average Slot Usage (%) 95 | . 99 85 Engine 13 | . 14 11 Leg 26 | . 28 20 Device 2 | . . 9 Storage 13 | . 14 11 Protection 12 | . 13 11 Energy Gun 1 | . 1 . Impact Weapon 15 | . 16 12 Slashing Weapon 9 | . 9 9 Peak Build Rating 24 | 6 13 24 Average Rating 11 | 5 10 21 On Entrance 6 | . 6 12 Avg Prop Armor Cover (%) . | . . . Naked Turns . | . . . Heaviest Build 21 | 12 21 21 Greatest Support 20 | 20 20 20 Greatest Overweight (x) 2 | . 1 2 Average Overweight (x) . | . . 1 Largest Inventory Capacity 8 | 8 8 8 Average Capacity 7 | 7 8 8 Most Carried 8 | 5 8 8 Average Carried 6 | 1 7 7 Final Capacity 8 | 8 8 8 Final Carried 8 | 1 8 8 Class Distribution -------------------- 100% | Mutant Dominant Class ---------------- Mutant | -10/Materials Mutant | -9/Materials Resources | -11 -10 -9 ----------- Run | Yrd Mat Mat Matter Collected 327 | 257 70 . Remotely . | . . . Salvage Created 540 | 200 340 . Parts 20 | 15 5 . Haulers Intercepted 1 | . 1 . Recyclers Shooed 3 | . 3 . Parts Field Recycled . | . . . Retrieved Matter . | . . . Parts Self-Destructed . | . . . Prevented . | . . . Parts Restored . | . . . Kills | -11 -10 -9 ------- Run | Yrd Mat Mat Combat Hostiles Destroyed 4 | . 4 . Melee 2 | . 2 . Classes Destroyed 7 | 3 4 . Worker 5 | 2 3 . Tunneler 5 | 5 . . Hauler 1 | . 1 . Recycler 3 | 1 2 . Watcher 1 | . 1 . Swarmer 3 | . 3 . Grunt 1 | . 1 . Best Kill Streak 7 | 7 4 . Combat Bots Only 1 | . 1 . Max Kills in Single Turn 1 | 1 1 . Gunslinging . | . . . Exploded . | . . . Melee 1 | . 1 . Uniques/NPCs Destroyed . | . . . Combat | -11 -10 -9 -------- Run | Yrd Mat Mat Hostile Shots Fired 89 | . 47 42 Missed 25 | . 16 9 Hits 64 | . 31 33 Projectile 64 | . 31 33 Damage Taken 760 | . 270 490 Core 235 | . 67 168 Absorbed by Shields . | . . . Core Remaining (%) 86 | 100 73 . Volleys Fired 20 | 20 . . Largest 2 | 2 . . Hottest 80 | 80 . . Shots Fired 40 | 40 . . Gun 40 | 40 . . Cannon . | . . . Launcher . | . . . Special . | . . . Kinetic . | . . . Thermal 40 | 40 . . Explosive . | . . . Electromagnetic . | . . . Robot Hit Streak 6 | 6 . . Robot Miss Streak 2 | 2 . . Penetration Max . | . . . Secondary Targets . | . . . Shots Hit Robots 58 | 24 22 12 Core Hits 11 | 9 2 . Critical Kills 1 | . 1 . Critical Parts Destroyed 2 | . 2 . Critical Strikes 3 | . 3 . Smash 3 | . 3 . Melee Attacks 51 | . 35 16 Impact 44 | . 30 14 Slashing 7 | . 5 2 Piercing . | . . . Sneak Attacks 9 | . 7 2 Combat Hostiles . | . . . Follow-up Attacks 6 | . 3 3 Damage Inflicted 1840 | 258 1124 458 Guns 258 | 258 . . Cannons . | . . . Explosions . | . . . Melee 1582 | . 1124 458 Ramming . | . . . Kinetic . | . . . Thermal 258 | 258 . . Explosive . | . . . Electromagnetic . | . . . Impact 1487 | . 1053 434 Slashing 95 | . 71 24 Piercing . | . . . Highest Corruption . | . . . Average Corruption . | . . . Corruption Purged . | . . . Corruption Blocked . | . . . Overload Shots . | . . . Overflow Damage 380 | . 375 5 Projectiles . | . . . Explosions . | . . . Melee 380 | . 375 5 Knockbacks 7 | . 7 . Impact 7 | . 7 . Kinetic . | . . . Secondary . | . . . Self-Inflicted Damage . | . . . Shots . | . . . Rammed . | . . . Targets Rammed 1 | 1 . . Kicked 1 | 1 . . Crushed . | . . . Highest Temperature 198 | 198 . . Average Temperature 76 | 76 . . Received Heat Transfer 177 | . 24 153 Siege Activations . | . . . Martial Activations . | . . . Shielding Activations . | . . . Robots Disrupted . | . . . Combat Hostiles . | . . . Robots Corrupted 7 | . 7 . Combat Hostiles 2 | . 2 . Parts Fried 6 | . 6 . Impact Corruptions 16 | . 14 2 Robots Melted . | . . . Combat Hostiles . | . . . Parts Melted . | . . . Heat Transferred 600 | 600 . . Parts Sabotaged . | . . . Parts Stolen . | . . . Parts Stripped . | . . . Power Chain Reactions . | . . . Alert | -11 -10 -9 ------- Run | Yrd Mat Mat Maximum Alert Level . | . . . Low Security (%) 100 | 100 100 100 Level 1 . | . . . Level 2 . | . . . Level 3 . | . . . Level 4 . | . . . Level 5 . | . . . High Security . | . . . Max Security . | . . . Peak Influence 60 | 15 60 22 Initial 16 | . . 16 Average 13 | 3 19 4 Influence Increases 234 | 40 188 6 Destroy 0b10 Robot/C 80 | . 80 . Destroy 0b10 Robot/NC 75 | 40 35 . Destroy Leader 24 | . 24 . Successful Hack 10 | . 4 6 Disable Machine 15 | . 15 . Partial Spotted 15 | . 15 . Lose Combat Pursuer 15 | . 15 . Influence Decreases 234 | 40 148 46 Entered New Map 24 | . . 24 Time Decay 210 | 40 148 22 Squads Dispatched 1 | . 1 . Investigation 1 | . 1 . Extermination . | . . . Reinforcement . | . . . Assault . | . . . Garrison . | . . . Intercept . | . . . Searches Triggered . | . . . Construction Impeded . | . . . Haulers Reinforced . | . . . Active Scanning Responses . | . . . Cargo Convoy Interrupts . | . . . Stealth | -11 -10 -9 --------- Run | Yrd Mat Mat Distress Signals 2 | . 2 . Communications Jammed . | . . . Distress Signals . | . . . Times Spotted 17 | . 13 4 Peak Tracking Total 6 | . 6 3 Tactical Retreats 1 | . 1 . Traps | -11 -10 -9 ------- Run | Yrd Mat Mat Traps Triggered . | . . . Indirectly . | . . . Trap Hack Attempts . | . . . Triggered . | . . . Disarmed . | . . . Reprogrammed . | . . . Reused . | . . . Traps Extracted . | . . . Installed . | . . . Triggered . | . . . Machines | -11 -10 -9 ---------- Run | Yrd Mat Mat Machines Disabled 1 | . 1 . Max in Single Turn 1 | . 1 . Machines Repaired . | . . . Machines Dismantled . | . . . Machines Sabotaged . | . . . Overloaded Fab Kills . | . . . Hacking | -11 -10 -9 --------- Run | Yrd Mat Mat Machines Accessed 4 | . 2 2 Terminals 4 | . 2 2 Fabricators . | . . . Repair Stations . | . . . Recycling Units . | . . . Scanalyzers . | . . . Garrison Access . | . . . Total Hacks 8 | . 4 4 Successful 5 | . 2 3 Failed 3 | . 2 1 Catastrophic . | . . . Database Lockouts . | . . . Manual 6 | . 1 5 Terminals 8 | . 4 4 Fabricators . | . . . Repair Stations . | . . . Recycling Units . | . . . Scanalyzers . | . . . Garrison Access . | . . . Terminal Hacks 2 | . 2 . Robot Analysis 2 | . 2 . Fabricator Hacks . | . . . Repair Station Hacks . | . . . Recycling Unit Hacks . | . . . Scanalyzer . | . . . Garrison Access Hacks . | . . . Unauthorized Hacks 3 | . . 3 Terminals 3 | . . 3 Assimilate 1 | . . 1 Botnet 2 | . . 2 Fabricators . | . . . Repair Stations . | . . . Recycling Units . | . . . Scanalyzers . | . . . Garrison Access . | . . . Data Cores Recovered . | . . . Used . | . . . Hacking Detections 2 | . 1 1 Full Trace Events . | . . . Feedback Events . | . . . Feedback Blocked . | . . . Robot Schematics Acquired . | . . . Robots Built . | . . . Authchips . | . . . Time . | . . . Total Robot Build Rating . | . . . Part Schematics Acquired . | . . . Parts Built . | . . . Authchips . | . . . Time . | . . . Total Part Build Rating . | . . . Part Studies Acquired . | . . . Parts Repaired . | . . . Time . | . . . Parts Recycled . | . . . Recycled Matter . | . . . Retrieved Matter . | . . . Retrieved Components . | . . . Parts Scanalyzed . | . . . Part Schematics Acquired . | . . . Parts Damaged . | . . . Bothacking | -11 -10 -9 ------------ Run | Yrd Mat Mat Used RIF Installer . | . . . Robots Hacked . | . . . Non-combat . | . . . Combat . | . . . Robot Hacks Applied . | . . . Relay Couplers Released . | . . . Fabnet Peak Effective % . | . . . Robots Rewired . | . . . Allies Hacked . | . . . Hacks Repelled . | . . . Allies | -11 -10 -9 -------- Run | Yrd Mat Mat Total Allies . | . . . Largest Group . | . . . Highest-Rated Group . | . . . Highest-Rated Ally . | . . . Total Orders . | . . . Ally Attacks . | . . . Total Damage . | . . . Kills . | . . . Allies Corrupted . | . . . Allies Melted . | . . . X0-1V1 Amusement Gains 17 | . 7 10 Bad Acts 2 | . 1 1 Intel | -11 -10 -9 ------- Run | Yrd Mat Mat Active Infowar (turns) . | . . . Robot Analysis Total 2 | . 2 . Derelict Logs Recovered . | . . . Drone Launches . | . . . Drone Recoveries . | . . . Exploration | -11 -10 -9 ------------- Run | Yrd Mat Mat Turns Passed 768 | 139 484 145 Spaces Moved 349 | 62 235 52 Core 13 | 13 . . Treads . | . . . Legs 336 | 49 235 52 Wheels . | . . . Hover . | . . . Flight . | . . . Fastest Speed 50 | 50 120 190 Average Speed 139 | 105 136 194 Slowest Speed 260 | 120 190 260 Overloaded Moves . | . . . Propulsion Burnouts . | . . . Robots Hopped . | . . . Potential Cave-ins . | . . . Cave-ins Triggered . | . . . Exploration Rate (%) 15 | 3 36 8 Regions Visited 2 Branch Regions . Pre-discovered Areas . | . . . Known Exits Taken . | . . . Unknown Exits Taken 2 | 1 1 . Scrap Searched . | . . . Spaces Dug . | . . . Terrain Destroyed . | . . . Melee . | . . . Projectile . | . . . AOE . | . . . Terrain Rammed . | . . . Walls Destroyed . | . . . Machines Disabled . | . . . Actions | -11 -10 -9 --------- Run | Yrd Mat Mat Total 511 | 95 346 70 Wait 50 | . 49 1 Move 347 | 61 234 52 Hop . | . . . Pick Up 25 | 7 17 1 Fast Attach . | . . . Attach 8 | 6 1 1 Detach . | . . . Swap 8 | . 6 2 Drop 9 | . 9 . Fire 20 | 20 . . Melee 43 | . 30 13 Ram . | . . . Kick 1 | 1 . . Crush . | . . . Escape Stasis . | . . . Rewire . | . . . Trap . | . . . Miscellaneous . | . . . Route ------- -11/Scrapyard -10/Materials (discovered 2 exits: *Mat / [*Sub]) -9/Materials History --------- Turn | Location | Event 2 | -11/Scrapyard | Met Revision 17 3 | -11/Scrapyard | Discovered new exit (range 15) 140 | -11/Scrapyard | Entered Materials 309 | -10/Materials | Build established: Mutant 497 | -10/Materials | Discovered new exit (range 7) 507 | -10/Materials | Prayed at D.C.S.S. Altar Unit 613 | -10/Materials | Discovered new exit (range 9) 624 | -10/Materials | Entered another Materials area 624 | -9/Materials | Evolved 2 slots: Utility x2 729 | -9/Materials | X0-1V1 sent hostile Y-45 Defender (x2) 769 | -9/Materials | Self-destructed Last Messages --------------- Destroyed Lgt. Ion Engine. R-06 Scavenger system corrupted by crushing effect. K-01 Serf cleans the Material Processor. Mining Claw follow-up attack on W-16 Scout. K-01 Serf collects debris. Sneak attack on A-02 Transporter. X0-1V1: "C'mon, do something!" Y-45 Defender form resolidifies at new position. Mining Claw follow-up attack on Y-45 Defender. X0-1V1's Piety Tracker destroyed. X0-1V1 is mildly amused. Aluminum Leg destroyed. Hvy. Hammer follow-up attack on Y-45 Defender. Destroyed Heat Sink. Y-45 Defender system corrupted by crushing effect. X0-1V1's Piety Tracker suddenly appears amidst shimmering waves of color. Aluminum Leg destroyed. Map ----- +----------------------------------------------------+ | ??????????????????????????????????????????? | | ??????????????????????????????????????????? | | ??????????????????????????????????????????? | | ??????????????????????????????????????????? | | ??????????????????????????????????????????? | | ??????????????????????????????????????????? | | ??????????????????????????????????????????? | | ??????????????????????????????????????????? | | ??????????????????????????????????????????? | | ??????????????????????????????????????????? | | ??????????????????????????????????????????? | | ??????????????????????????????????????????? | | ??????????????????????????????????????????? | | ??????????????????????????????????????????? | | ??????????????????????????????????????????? | | ??????????????????????????????????????????? | | ????????????#+#########???????????????????? | | ?????????#### # #???????????????????? | | ?????????? #""" #???????????????????? | | ??????????? #""" #???????????????????? | | ???????????# #""" ?????????????????????? | | ????##+##### # ???????????????????????? | | ????# + ##Y###??????????????????????? | | ???????????# Y Y#??????????????????????? | | ???????????# #??########????????????? | | ???????????###### @#? #????????????? | | ???????????# # #? #????????????? | | ???????????# + # #????????????? | | ???????????# # # #????????????? | | ???????????# + + """ ""???????????????? | | ???????????# ?# # """ ""???????????????? | | ???????????# ?# # """ ""???????????????? | | ???????????# ??+ #? ???????????????? | | ???????????# ??## #?######???????????????? | | ???????????# ????# #??????????????????????? | | ???????????##????# #??????????????????????? | | ?????????#########+#??????????????????????? | | ?????????# ! ! #??????????????????????? | | ?????????# #??????????????????????? | | ?????????# """ #??????????????????????? | | ?????????# """"" #??????????????????????? | | ?????????# """"" #??????????????????????? | | ?????????# """"" #??????????????????????? | | ?????????# """ #??????????????????????? | | ?????????# #??????????????????????? | | ?????????#####/#####??????????????????????? | | ????######## ####?????????????????????? | | ????# #?????????????????????? | | ????# T ## #?????????????????????? | | ????# #??#?????????????????????? | +----------------------------------------------------+ Best States ------------- Heat Dissipation 28 Energy Generation 10 Energy Capacity 250 Matter Stores 300 Matter Capacity 300 Sight Range 16 Terrain Scan Density 10 Armor Coverage 150 Evasion (%) 55 Authchip Count 2 Item Schematics ----------------- None Robot Schematics ------------------ None Fabricated ------------ Nothing Repaired ---------- Nothing Studied --------- None Alien Tech Used ----------------- None Achievements -------------- You Again Challenges ------------ None Game ------ Seed HoverNanofilamentsShovel Manual? 0 Play Time 00:08:09 Cumulative 87.1 hours Start 2026.07.01 @ 12:50:24 End 2026.07.01 @ 13:00:06 Sessions 1 Manual Loads 0 Difficulty Rogue Special Mode None Game No. 71 Rogue 41 Adventurer 30 Explorer 0 Win Type - Total 1 Types 1/0/0/0/0/0/0/0/0/0 Lore% 31 Gallery% 36 Achievement% 36 Wizard Run 0 Options --------- Layout 2 ASCII 0 Keyboard 0 Movement Numpad Keybinds 0 Fullscreen 1 Font 16/SmallcapsGlow Map View 25x24 Zoom Use 78% Tactical HUD 0 Map Filters NONE Filters NONE Steam 1 RUN: 762c004e-dbb8-4419-a8e0-ecace291e2b1